[Event "European-ch Seniors 2018"]
[Site "Drammen"]
[Date "2018.08.04"]
[Round "1"]
[White "Johnsen, Oystein"]
[Black "Bogdanov, Valentin"]
[Result "0-1"]
[ECO "A46"]
[WhiteElo "2009"]
[BlackElo "2356"]
[Annotator "NA"]
[PlyCount "50"]
[EventDate "2018.08.04"]
[EventType "swiss"]
[EventCountry "NOR"]
[SourceTitle "playchess.com"]
[Source "ChessBase"]
[SourceQuality "1"]
[TimeControl "40/5400+30:1800+30"]

1. d4 {[%emt 0:00:00]} Nf6 {[%emt 0:00:04]} 2. Nf3 {[%emt 0:00:07]} c5 {[%emt 0:00:47]} 3. c3 {[%emt 0:00:57]} b6 {[%emt 0:01:36]} 4. Bf4 {[%emt 0:01:22]} Bb7 {[%emt 0:01:50]} 5. e3 {[%emt 0:01:04]} e6 {[%emt 0:02:48]} 6. Nbd2 {[%emt 0:00:59]} Nc6 {[%emt 0:01:30]} 7. Bd3 {[%emt 0:01:02]} Be7 {[%emt 0:01:12]} 8. O-O {[%emt 0:02:24]} Nh5 {[%emt 0:02:00]} 9. Bg3 {[%emt 0:05:08]} Nxg3 {[%emt 0:00:27]} 10. hxg3 {[%emt 0:02:36]} O-O {[%emt 0:00:47]} 11. Rc1 {[%emt 0:06:34]} d6 {[%emt 0:05:02]} 12. Qe2 {[%emt 0:02:22]} g6 {[%emt 0:03:28]} 13. g4 {[%emt 0:03:11]} Bf6 {[%emt 0:05:34]} 14. Ne4 {[%emt 0:03:27]} Bg7 {[%emt 0:00:34]} 15. Rfd1 {[%emt 0:10:15]} Qe7 {[%emt 0:06:05]} 16. Bb1 {[%emt 0:07:41]} d5 {[%emt 0:03:10]} 17. Ng3 {[%emt 0:02:06]} e5 {[%emt 0:02:46]} 18. e4 {[%emt 0:15:57]} dxe4 19. Bxe4 {[%emt 0:02:52]} exd4 {[%emt 0:07:33]} 20. Bxc6 {[%emt 0:09:00]} Qxe2 {[%emt 0:00:23]} 21. Nxe2 {[%emt 0:00:01]} Bxc6 {[%emt 0:00:11]} 22. cxd4 {[%emt 0:00:19]} Rfe8 {[%emt 0:00:43]} 23. Nc3 {[%emt 0:04:11]} Bxf3 {[%emt 0:00:45]} 24. gxf3 {[%emt 0:00:01]} Bxd4 {[%emt 0:00:41]} 25. Nb5 {[%emt 0:01:23]} Bxb2 {[%emt 0:00:55]} 0-1

[Event "European-ch Seniors 2018"]
[Site "Drammen"]
[Date "2018.08.04"]
[Round "1"]
[White "Danielsson, Robert"]
[Black "Gaprindashvili, Nona"]
[Result "0-1"]
[ECO "A40"]
[WhiteElo "1993"]
[BlackElo "2305"]
[Annotator "NA"]
[PlyCount "76"]
[EventDate "2018.08.04"]
[EventType "swiss"]
[EventCountry "NOR"]
[SourceTitle "playchess.com"]
[Source "ChessBase"]
[SourceQuality "1"]
[TimeControl "40/5400+30:1800+30"]

1. d4 {[%emt 0:00:00]} g6 {[%emt 0:00:10]} 2. c4 {[%emt 0:00:39]} d6 {[%emt 0:00:10]} 3. Nc3 {[%emt 0:00:35]} Nd7 {[%emt 0:00:09]} 4. e4 {[%emt 0:00:58]} e5 {[%emt 0:00:03]} 5. Be3 {[%emt 0:00:30]} Nh6 {[%emt 0:00:30]} 6. f3 {[%emt 0:00:30]} f5 {[%emt 0:00:30]} 7. Qd2 {[%emt 0:00:30]} f4 {[%emt 0:00:30]} 8. Bf2 {[%emt 0:00:30]} Bg7 {[%emt 0:00:00]} 9. Nge2 {[%emt 0:10:45]} Nf7 {[%emt 0:05:02]} 10. d5 {[%emt 0:00:30]} c5 {[%emt 0:00:30]} 11. Nc1 {[%emt 0:10:41]} O-O {[%emt 0:01:43]} 12. Nd3 {[%emt 0:06:48]} Nf6 {[%emt 0:02:04]} 13. Be2 {[%emt 0:06:05]} Bd7 {[%emt 0:09:45]} 14. b4 {[%emt 0:04:42]} cxb4 {[%emt 0:01:06]} 15. Nxb4 {[%emt 0:00:30]} Qa5 {[%emt 0:00:30]} 16. Rb1 {[%emt 0:02:38]} Rfc8 {[%emt 0:07:11]} 17. O-O {[%emt 0:01:54]} g5 {[%emt 0:01:53]} 18. Qb2 {[%emt 0:20:37]} g4 {[%emt 0:04:00]} 19. Rfd1 {[%emt 0:00:22]} gxf3 {[%emt 0:01:12]} 20. gxf3 {[%emt 0:00:11]} Ng5 {[%emt 0:02:59]} 21. Kh1 {[%emt 0:02:18]} Nh3 {[%emt 0:01:34]} 22. Bg1 {[%emt 0:00:21]} Bf8 {[%emt 0:05:17]} 23. Nc2 {[%emt 0:03:29]} Be7 {[%emt 0:01:20]} 24. Qb4 {[%emt 0:00:19]} Qxb4 {[%emt 0:01:44]} 25. Rxb4 {[%emt 0:00:32]} b6 {[%emt 0:01:10]} 26. Rdb1 {[%emt 0:08:04]} Kf7 {[%emt 0:00:51]} 27. a4 {[%emt 0:03:00]} Rg8 {[%emt 0:02:32]} 28. Rf1 {[%emt 0:02:52]} Rg6 {[%emt 0:03:35]} 29. Bf2 {[%emt 0:00:39]} Rag8 {[%emt 0:00:37]} 30. Nd1 {[%emt 0:00:07]} Bd8 {[%emt 0:03:26]} 31. Bd3 {[%emt 0:06:36]} a5 {[%emt 0:01:15]} 32. Rb2 {[%emt 0:00:18]} Bxa4 {[%emt 0:00:43]} 33. Ra2 {[%emt 0:00:09]} Bb3 {[%emt 0:01:00]} 34. Rb2 {[%emt 0:00:49]} a4 {[%emt 0:00:11]} 35. Na1 {[%emt 0:00:24]} Bxd1 {[%emt 0:03:56]} 36. Rxd1 {[%emt 0:00:05]} Rg2 {[%emt 0:00:07]} 37. Rf1 {[%emt 0:01:08]} Nd7 {[%emt 0:00:39]} 38. Re2 {[%emt 0:02:31]} Bh4 {[%emt 0:00:15]} 0-1

[Event "European-ch Seniors 2018"]
[Site "Drammen"]
[Date "2018.08.04"]
[Round "1"]
[White "Sand, Rolf"]
[Black "Werner, Clemens"]
[Result "0-1"]
[ECO "A20"]
[WhiteElo "1990"]
[BlackElo "2258"]
[Annotator "NA"]
[PlyCount "54"]
[EventDate "2018.08.04"]
[EventType "swiss"]
[EventCountry "NOR"]
[SourceTitle "playchess.com"]
[Source "ChessBase"]
[SourceQuality "1"]
[TimeControl "40/5400+30:1800+30"]

1. c4 {[%emt 0:00:00]} e5 {[%emt 0:00:29]} 2. g3 {[%emt 0:00:00]} Nf6 {[%emt 0:01:45]} 3. Bg2 {[%emt 0:00:15]} c6 {[%emt 0:00:59]} 4. d4 {[%emt 0:00:50]} Bb4+ {[%emt 0:01:21]} 5. Bd2 {[%emt 0:02:26]} Bxd2+ {[%emt 0:00:21]} 6. Qxd2 {[%emt 0:01:12]} d6 {[%emt 0:00:07]} 7. Nc3 {[%emt 0:01:26]} Qe7 {[%emt 0:00:26]} 8. Nf3 {[%emt 0:03:15]} O-O {[%emt 0:01:32]} 9. O-O {[%emt 0:01:38]} Re8 {[%emt 0:03:08]} 10. e4 {[%emt 0:14:59]} Bg4 {[%emt 0:04:03]} 11. h3 {[%emt 0:03:48]} Bxf3 {[%emt 0:03:41]} 12. Bxf3 {[%emt 0:00:50]} Qe6 {[%emt 0:01:56]} 13. d5 {[%emt 0:00:26]} Qxh3 {[%emt 0:01:31]} 14. dxc6 {[%emt 0:00:32]} Nxc6 {[%emt 0:00:26]} 15. Qxd6 {[%emt 0:06:58]} Nd4 {[%emt 0:15:59]} 16. Bg2 {[%emt 0:17:12]} Qh6 {[%emt 0:02:32]} 17. Rfd1 {[%emt 0:08:16]} Rad8 {[%emt 0:06:17]} 18. Qc7 {[%emt 0:01:33]} Rc8 {[%emt 0:18:12]} 19. Qxb7 {[%emt 0:04:19]} Ng4 {[%emt 0:11:35]} 20. Nd5 {[%emt 0:05:41]} Nf3+ {[%emt 0:03:13]} 21. Kf1 {[%emt 0:01:59]} Qh2 {[%emt 0:00:25]} 22. Ne7+ {[%emt 0:07:04]} Kh8 {[%emt 0:01:28]} 23. Nxc8 {[%emt 0:01:36]} Qg1+ {[%emt 0:01:30]} 24. Ke2 {[%emt 0:00:08]} Qxf2+ {[%emt 0:01:18]} 25. Kd3 {[%emt 0:00:07]} Nd4 {[%emt 0:01:10]} 26. Kc3 {[%emt 0:04:11]} Qc2+ {[%emt 0:00:47]} 27. Kb4 {[%emt 0:00:20]} Qxb2+ {[%emt 0:00:07]} 0-1

[Event "European-ch Seniors 2018"]
[Site "Drammen"]
[Date "2018.08.04"]
[Round "1"]
[White "Smeby, Ole"]
[Black "Ackermann, Hans Werner"]
[Result "0-1"]
[ECO "A41"]
[WhiteElo "1980"]
[BlackElo "2246"]
[Annotator "NA"]
[PlyCount "116"]
[EventDate "2018.08.04"]
[EventType "swiss"]
[EventCountry "NOR"]
[SourceTitle "playchess.com"]
[Source "ChessBase"]
[SourceQuality "1"]
[TimeControl "40/5400+30:1800+30"]

1. d4 {[%emt 0:00:00]} d6 {[%emt 0:00:00]} 2. c4 {[%emt 0:00:00]} e5 {[%emt 0:00:44]} 3. dxe5 {[%emt 0:01:46]} dxe5 {[%emt 0:00:11]} 4. Qxd8+ {[%emt 0:00:07]} Kxd8 {[%emt 0:00:04]} 5. e4 {[%emt 0:01:23]} Bc5 {[%emt 0:05:15]} 6. Nf3 {[%emt 0:02:30]} f6 {[%emt 0:01:11]} 7. Be2 {[%emt 0:04:30]} Be6 {[%emt 0:02:10]} 8. O-O {[%emt 0:00:24]} Nd7 {[%emt 0:00:33]} 9. Nc3 {[%emt 0:04:06]} a5 {[%emt 0:02:00]} 10. Na4 {[%emt 0:02:27]} Ba7 {[%emt 0:02:49]} 11. Rd1 {[%emt 0:01:42]} Kc8 {[%emt 0:00:31]} 12. b3 {[%emt 0:02:01]} Nc5 {[%emt 0:14:56]} 13. Nxc5 {[%emt 0:02:36]} Bxc5 {[%emt 0:00:29]} 14. Bb2 {[%emt 0:00:46]} Nh6 {[%emt 0:01:52]} 15. h3 {[%emt 0:00:13]} Nf7 {[%emt 0:03:59]} 16. a3 {[%emt 0:06:22]} b6 {[%emt 0:14:39]} 17. Bc3 {[%emt 0:08:53]} g5 {[%emt 0:08:43]} 18. b4 {[%emt 0:02:15]} Be7 {[%emt 0:00:40]} 19. bxa5 {[%emt 0:09:10]} bxa5 {[%emt 0:00:10]} 20. Rdb1 {[%emt 0:00:11]} Bd7 {[%emt 0:02:54]} 21. Nd2 {[%emt 0:02:51]} h5 {[%emt 0:01:48]} 22. a4 {[%emt 0:06:08]} Nd8 {[%emt 0:15:57]} 23. Nb3 {[%emt 0:04:20]} Nb7 {[%emt 0:00:44]} 24. Rd1 {[%emt 0:08:53]} Be6 {[%emt 0:02:45]} 25. f3 {[%emt 0:01:00]} h4 {[%emt 0:03:42]} 26. Be1 {[%emt 0:01:34]} Rd8 {[%emt 0:01:00]} 27. Rxd8+ {[%emt 0:01:29]} Kxd8 {[%emt 0:00:07]} 28. Rd1+ {[%emt 0:02:09]} Kc8 {[%emt 0:00:26]} 29. Rc1 {[%emt 0:02:12]} Nc5 {[%emt 0:03:07]} 30. Nxa5 {[%emt 0:07:30]} Rxa5 {[%emt 0:01:49]} 31. Bxa5 {[%emt 0:00:09]} Nb3 {[%emt 0:00:01]} 32. Rb1 {[%emt 0:03:27]} Bc5+ {[%emt 0:01:04]} 33. Kf1 {[%emt 0:01:02]} Nxa5 {[%emt 0:00:09]} 34. Rb5 {[%emt 0:00:16]} Nb7 {[%emt 0:00:25]} 35. a5 {[%emt 0:00:49]} c6 {[%emt 0:00:19]} 36. Rb2 {[%emt 0:02:30]} Nxa5 {[%emt 0:00:08]} 37. Ra2 {[%emt 0:00:12]} Bb4 {[%emt 0:00:31]} 38. Rb2 {[%emt 0:01:15]} c5 {[%emt 0:00:06]} 39. Rc2 {[%emt 0:00:04]} Nc6 {[%emt 0:03:15]} 40. Bd3 {[%emt 0:00:00]} Nd4 {[%emt 0:00:00]} 41. Ra2 {[%emt 0:01:11]} Kb7 {[%emt 0:00:26]} 42. Kf2 {[%emt 0:00:39]} Nb3 {[%emt 0:02:00]} 43. Rc2 {[%emt 0:01:58]} Kb6 {[%emt 0:02:21]} 44. Bf1 {[%emt 0:00:49]} Kc6 {[%emt 0:07:57]} 45. Ra2 {[%emt 0:01:30]} Na5 {[%emt 0:00:15]} 46. Rc2 {[%emt 0:00:16]} f5 {[%emt 0:00:06]} 47. Bd3 {[%emt 0:01:28]} f4 {[%emt 0:00:28]} 48. Bf1 {[%emt 0:00:21]} Kc7 {[%emt 0:00:35]} 49. Bd3 {[%emt 0:00:58]} Bd7 {[%emt 0:00:05]} 50. Ra2 {[%emt 0:00:49]} Bc3 {[%emt 0:00:49]} 51. Kf1 {[%emt 0:04:26]} Kb6 {[%emt 0:00:33]} 52. Rc2 {[%emt 0:01:42]} Bd4 {[%emt 0:00:21]} 53. Be2 {[%emt 0:01:48]} Ba4 {[%emt 0:00:28]} 54. Rc1 {[%emt 0:00:54]} Nb3 {[%emt 0:00:24]} 55. Rb1 {[%emt 0:03:25]} Ka5 {[%emt 0:00:03]} 56. Ke1 {[%emt 0:00:35]} Kb4 {[%emt 0:00:08]} 57. Bd3 {[%emt 0:02:33]} Kc3 {[%emt 0:00:25]} 58. Ke2 {[%emt 0:01:28]} Be3 {[%emt 0:00:07]} 0-1

[Event "European-ch Seniors 2018"]
[Site "Drammen"]
[Date "2018.08.04"]
[Round "1"]
[White "Baliuniene, Margarita"]
[Black "Johnsen, Sylvia"]
[Result "0-1"]
[ECO "D37"]
[WhiteElo "1937"]
[BlackElo "1977"]
[Annotator "NA"]
[PlyCount "94"]
[EventDate "2018.08.04"]
[EventType "swiss"]
[EventCountry "NOR"]
[SourceTitle "playchess.com"]
[Source "ChessBase"]
[SourceQuality "1"]
[TimeControl "40/5400+30:1800+30"]

1. d4 {[%emt 0:00:00]} d5 {[%emt 0:00:00]} 2. Nf3 {[%emt 0:00:00]} Nf6 {[%emt 0:00:00]} 3. c4 {[%emt 0:00:00]} e6 {[%emt 0:00:00]} 4. Nc3 {[%emt 0:00:09]} Nbd7 {[%emt 0:01:01]} 5. Bg5 {[%emt 0:02:44]} Be7 {[%emt 0:00:07]} 6. e3 {[%emt 0:00:10]} h6 {[%emt 0:00:14]} 7. Bh4 {[%emt 0:00:09]} O-O {[%emt 0:00:08]} 8. Bd3 {[%emt 0:00:31]} dxc4 {[%emt 0:00:27]} 9. Bxc4 {[%emt 0:00:09]} b6 {[%emt 0:00:11]} 10. O-O {[%emt 0:01:36]} Bb7 {[%emt 0:00:07]} 11. Rc1 {[%emt 0:03:25]} Ne4 {[%emt 0:04:12]} 12. Bxe7 {[%emt 0:00:57]} Qxe7 {[%emt 0:00:06]} 13. Nxe4 {[%emt 0:01:44]} Bxe4 {[%emt 0:00:16]} 14. Nd2 {[%emt 0:01:29]} Bb7 {[%emt 0:01:20]} 15. Bb5 {[%emt 0:03:13]} c5 {[%emt 0:05:56]} 16. Bxd7 {[%emt 0:12:03]} Qxd7 {[%emt 0:00:16]} 17. dxc5 {[%emt 0:00:22]} Rfd8 {[%emt 0:08:01]} 18. Nb3 {[%emt 0:15:24]} Qa4 {[%emt 0:07:13]} 19. Qc2 {[%emt 0:02:51]} Rac8 {[%emt 0:09:10]} 20. Rfd1 {[%emt 0:16:54]} Qg4 {[%emt 0:01:16]} 21. Rxd8+ {[%emt 0:00:39]} Rxd8 {[%emt 0:00:13]} 22. c6 {[%emt 0:00:26]} Bxc6 {[%emt 0:00:24]} 23. f3 {[%emt 0:03:41]} Bxf3 {[%emt 0:01:05]} 24. Nd4 {[%emt 0:00:40]} Bd5 {[%emt 0:05:22]} 25. Rf1 {[%emt 0:02:17]} e5 {[%emt 0:14:13]} 26. Nc6 {[%emt 0:13:11]} Bxc6 {[%emt 0:01:47]} 27. Qxc6 {[%emt 0:00:05]} Qe2 {[%emt 0:01:38]} 28. Qc7 {[%emt 0:06:00]} Qxe3+ {[%emt 0:00:43]} 29. Kh1 {[%emt 0:00:02]} Rf8 {[%emt 0:01:17]} 30. h3 {[%emt 0:01:30]} Qe2 {[%emt 0:01:35]} 31. Rc1 {[%emt 0:04:04]} Qxb2 {[%emt 0:00:57]} 32. Rc2 {[%emt 0:00:06]} Qd4 {[%emt 0:01:01]} 33. Kh2 {[%emt 0:01:51]} Qf4+ {[%emt 0:05:42]} 34. g3 {[%emt 0:00:09]} Qa4 {[%emt 0:02:10]} 35. Rf2 {[%emt 0:02:17]} e4 {[%emt 0:00:48]} 36. Qf4 {[%emt 0:00:47]} Qc4 {[%emt 0:01:09]} 37. h4 {[%emt 0:01:52]} Re8 {[%emt 0:04:43]} 38. g4 {[%emt 0:00:55]} Qd5 {[%emt 0:00:39]} 39. Kg1 {[%emt 0:02:46]} e3 {[%emt 0:00:37]} 40. Rf1 {[%emt 0:00:00]} e2 {[%emt 0:00:00]} 41. Re1 {[%emt 0:00:56]} Re4 {[%emt 0:04:04]} 42. Qf3 {[%emt 0:02:05]} Qd4+ {[%emt 0:00:46]} 43. Kh2 {[%emt 0:00:19]} Re3 {[%emt 0:06:35]} 44. Qg2 {[%emt 0:11:26]} Qf4+ {[%emt 0:03:04]} 45. Kh1 {[%emt 0:00:11]} Rf3 {[%emt 0:02:10]} 46. Qxe2 {[%emt 0:01:49]} Rh3+ {[%emt 0:00:13]} 47. Kg1 {[%emt 0:00:29]} Qg3+ {[%emt 0:00:05]} 0-1

[Event "European-ch Seniors 2018"]
[Site "Drammen"]
[Date "2018.08.04"]
[Round "1"]
[White "Syvertsen, Rolf Erik"]
[Black "Elseth, Roar"]
[Result "0-1"]
[ECO "D00"]
[WhiteElo "1884"]
[BlackElo "2311"]
[Annotator "NA"]
[PlyCount "158"]
[EventDate "2018.08.04"]
[EventType "swiss"]
[EventCountry "NOR"]
[SourceTitle "playchess.com"]
[Source "ChessBase"]
[SourceQuality "1"]
[TimeControl "40/5400+30:1800+30"]

1. d4 {[%emt 0:00:00]} d5 {[%emt 0:00:00]} 2. Bf4 {[%emt 0:00:00]} Nf6 {[%emt 0:01:08]} 3. e3 {[%emt 0:00:00]} g6 {[%emt 0:01:40]} 4. h3 {[%emt 0:03:07]} Bg7 {[%emt 0:02:26]} 5. Nf3 {[%emt 0:00:12]} O-O {[%emt 0:01:41]} 6. Bd3 {[%emt 0:01:11]} c5 {[%emt 0:02:03]} 7. c3 {[%emt 0:00:11]} b6 {[%emt 0:10:42]} 8. Nbd2 {[%emt 0:00:39]} Bb7 {[%emt 0:05:22]} 9. O-O {[%emt 0:00:20]} Nbd7 {[%emt 0:00:34]} 10. Qe2 {[%emt 0:01:22]} a6 {[%emt 0:20:00]} 11. a4 {[%emt 0:15:31]} Re8 {[%emt 0:05:01]} 12. Rfd1 {[%emt 0:07:48]} Qc8 {[%emt 0:05:31]} 13. Bh2 {[%emt 0:13:58]} Ne4 {[%emt 0:12:46]} 14. Bxe4 {[%emt 0:22:49]} dxe4 {[%emt 0:00:12]} 15. Ne5 {[%emt 0:00:38]} Nxe5 {[%emt 0:11:30]} 16. dxe5 {[%emt 0:00:01]} Qe6 {[%emt 0:02:50]} 17. a5 {[%emt 0:10:53]} b5 {[%emt 0:00:40]} 18. Qg4 {[%emt 0:00:30]} Qxg4 {[%emt 0:02:54]} 19. hxg4 {[%emt 0:00:02]} Bd5 {[%emt 0:01:34]} 20. b3 {[%emt 0:04:11]} Red8 {[%emt 0:01:15]} 21. c4 {[%emt 0:00:24]} bxc4 {[%emt 0:00:41]} 22. bxc4 {[%emt 0:00:20]} Bc6 {[%emt 0:01:48]} 23. Kf1 {[%emt 0:05:52]} Rab8 {[%emt 0:01:45]} 24. Ke1 {[%emt 0:01:01]} Rb2 {[%emt 0:00:52]} 25. Bg3 {[%emt 0:02:06]} Rd3 {[%emt 0:01:36]} 26. Nb1 {[%emt 0:03:26]} Bd7 {[%emt 0:01:16]} 27. Rxd3 {[%emt 0:01:35]} exd3 {[%emt 0:00:05]} 28. Nd2 {[%emt 0:01:15]} Be6 {[%emt 0:01:06]} 29. Rc1 {[%emt 0:01:31]} Rc2 {[%emt 0:01:26]} 30. Kd1 {[%emt 0:00:55]} Bxg4+ {[%emt 0:00:36]} 31. f3 {[%emt 0:00:05]} Bd7 {[%emt 0:00:48]} 32. Rxc2 {[%emt 0:00:09]} Ba4 {[%emt 0:00:04]} 33. Kc1 {[%emt 0:00:49]} dxc2 {[%emt 0:00:21]} 34. Ne4 {[%emt 0:00:24]} Bb3 {[%emt 0:00:42]} 35. Nxc5 {[%emt 0:01:34]} Bxc4 {[%emt 0:00:19]} 36. Kxc2 {[%emt 0:00:13]} Bf1 {[%emt 0:00:39]} 37. f4 {[%emt 0:00:19]} e6 {[%emt 0:00:27]} 38. Nd7 {[%emt 0:01:21]} h5 {[%emt 0:00:56]} 39. Bh4 {[%emt 0:00:15]} Bxg2 {[%emt 0:00:32]} 40. Kd3 {[%emt 0:00:00]} Bc6 {[%emt 0:00:00]} 41. Nc5 {[%emt 0:04:53]} Bf8 {[%emt 0:01:18]} 42. Kd4 {[%emt 0:00:22]} Bb5 {[%emt 0:00:17]} 43. Bd8 {[%emt 0:07:44]} Kh7 {[%emt 0:04:40]} 44. Bg5 {[%emt 0:02:25]} Bf1 {[%emt 0:10:39]} 45. Bd8 {[%emt 0:00:38]} g5 {[%emt 0:06:40]} 46. Bxg5 {[%emt 0:00:26]} Kg6 {[%emt 0:00:08]} 47. e4 {[%emt 0:14:00]} Bb5 {[%emt 0:03:14]} 48. Bd8 {[%emt 0:00:43]} Bh6 {[%emt 0:03:43]} 49. Ke3 {[%emt 0:00:13]} h4 {[%emt 0:01:12]} 50. Bxh4 {[%emt 0:00:07]} Kh5 {[%emt 0:00:10]} 51. Bg3 {[%emt 0:02:02]} Kg4 {[%emt 0:00:13]} 52. Bh2 {[%emt 0:00:04]} Kh3 {[%emt 0:00:29]} 53. Bg1 {[%emt 0:00:34]} Kg3 {[%emt 0:01:17]} 54. Bf2+ {[%emt 0:00:40]} Kg4 {[%emt 0:00:15]} 55. Kd4 {[%emt 0:01:19]} Bxf4 {[%emt 0:00:23]} 56. Be3 {[%emt 0:00:40]} Bg3 {[%emt 0:00:22]} 57. Bd2 {[%emt 0:00:37]} Kf3 {[%emt 0:00:55]} 58. Be3 {[%emt 0:02:36]} Be1 {[%emt 0:00:56]} 59. Nb7 {[%emt 0:00:12]} Bf1 {[%emt 0:02:26]} 60. Nd6 {[%emt 0:01:54]} Bxa5 {[%emt 0:00:13]} 61. Bc1 {[%emt 0:00:26]} Bb6+ {[%emt 0:00:43]} 62. Kc3 {[%emt 0:00:05]} Be2 {[%emt 0:01:26]} 63. Nxf7 {[%emt 0:00:07]} Kxe4 {[%emt 0:00:11]} 64. Kb4 {[%emt 0:01:13]} Bh5 {[%emt 0:01:14]} 65. Nd6+ {[%emt 0:00:19]} Kd5 {[%emt 0:00:07]} 66. Nc4 {[%emt 0:00:14]} Bc7 {[%emt 0:00:16]} 67. Bb2 {[%emt 0:00:07]} Be2 {[%emt 0:00:16]} 68. Ne3+ {[%emt 0:00:56]} Ke4 {[%emt 0:00:32]} 69. Nc4 {[%emt 0:00:12]} Bxc4 {[%emt 0:00:18]} 70. Kxc4 {[%emt 0:00:17]} Bxe5 {[%emt 0:00:02]} 71. Bc1 {[%emt 0:00:17]} Bd6 {[%emt 0:00:19]} 72. Bd2 {[%emt 0:00:15]} Bf8 {[%emt 0:00:22]} 73. Bg5 {[%emt 0:01:53]} Kf3 {[%emt 0:01:03]} 74. Bf6 {[%emt 0:00:15]} Bd6 {[%emt 0:00:47]} 75. Bc3 {[%emt 0:01:07]} Ke4 {[%emt 0:00:08]} 76. Bd2 {[%emt 0:00:15]} Kf3 {[%emt 0:00:43]} 77. Bh6 {[%emt 0:00:17]} a5 {[%emt 0:00:55]} 78. Kb5 {[%emt 0:00:14]} Bb4 {[%emt 0:00:05]} 79. Kc4 {[%emt 0:00:12]} e5 {[%emt 0:00:11]} 0-1

[Event "European-ch Seniors 2018"]
[Site "Drammen"]
[Date "2018.08.04"]
[Round "1"]
[White "Gonzalez Pabollet, Jesus Maria S"]
[Black "Blechzin, Igor"]
[Result "0-1"]
[ECO "B28"]
[WhiteElo "1818"]
[BlackElo "2250"]
[Annotator "NA"]
[PlyCount "54"]
[EventDate "2018.08.04"]
[EventType "swiss"]
[EventCountry "NOR"]
[SourceTitle "playchess.com"]
[Source "ChessBase"]
[SourceQuality "1"]
[TimeControl "40/5400+30:1800+30"]

1. e4 {[%emt 0:00:08]} c5 {[%emt 0:00:00]} 2. Nf3 {[%emt 0:00:08]} a6 {[%emt 0:00:04]} 3. d4 {[%emt 0:00:22]} cxd4 {[%emt 0:00:07]} 4. Nxd4 {[%emt 0:00:11]} Nf6 {[%emt 0:00:19]} 5. Nc3 {[%emt 0:00:25]} e5 {[%emt 0:01:08]} 6. Nb3 {[%emt 0:04:05]} Bb4 {[%emt 0:04:15]} 7. Be2 {[%emt 0:04:43]} Nxe4 {[%emt 0:02:05]} 8. Bd2 {[%emt 0:08:18]} Bxc3 {[%emt 0:03:51]} 9. bxc3 {[%emt 0:05:12]} d5 {[%emt 0:03:26]} 10. O-O {[%emt 0:00:31]} O-O {[%emt 0:00:15]} 11. c4 {[%emt 0:05:09]} d4 {[%emt 0:02:34]} 12. Bf3 {[%emt 0:08:54]} Nxd2 {[%emt 0:00:31]} 13. Qxd2 {[%emt 0:03:16]} Nc6 {[%emt 0:00:22]} 14. Rab1 {[%emt 0:03:29]} Qe7 {[%emt 0:02:13]} 15. Rfe1 {[%emt 0:02:27]} Rd8 {[%emt 0:04:16]} 16. Na5 {[%emt 0:15:37]} Qc7 {[%emt 0:02:50]} 17. Nxc6 {[%emt 0:12:53]} bxc6 {[%emt 0:01:04]} 18. Qb4 {[%emt 0:03:51]} Bf5 {[%emt 0:01:17]} 19. Qc5 {[%emt 0:16:44]} Bxc2 {[%emt 0:00:33]} 20. Rb6 {[%emt 0:00:16]} Qd6 {[%emt 0:03:49]} 21. Rxc6 {[%emt 0:01:33]} Qxc5 {[%emt 0:00:26]} 22. Rxc5 {[%emt 0:00:01]} d3 {[%emt 0:01:29]} 23. Rd5 {[%emt 0:02:14]} Rxd5 {[%emt 0:01:13]} 24. cxd5 {[%emt 0:00:45]} d2 {[%emt 0:02:37]} 25. Ra1 {[%emt 0:00:34]} Rc8 {[%emt 0:00:38]} 26. d6 {[%emt 0:00:35]} Ba4 {[%emt 0:01:36]} 27. d7 {[%emt 0:00:33]} Rc1+ {[%emt 0:00:19]} 0-1

[Event "European-ch Seniors 2018"]
[Site "Drammen"]
[Date "2018.08.04"]
[Round "1"]
[White "Andersen, Guttorm"]
[Black "Zimmermann, Luc"]
[Result "1-0"]
[ECO "D97"]
[WhiteElo "1767"]
[BlackElo "2184"]
[Annotator "NA"]
[PlyCount "81"]
[EventDate "2018.08.04"]
[EventType "swiss"]
[EventCountry "NOR"]
[SourceTitle "playchess.com"]
[Source "ChessBase"]
[SourceQuality "1"]
[TimeControl "40/5400+30:1800+30"]

1. d4 {[%emt 0:00:00]} Nf6 {[%emt 0:00:00]} 2. c4 {[%emt 0:00:00]} g6 {[%emt 0:00:00]} 3. Nc3 {[%emt 0:00:00]} d5 {[%emt 0:00:00]} 4. Nf3 {[%emt 0:02:57]} Bg7 {[%emt 0:00:00]} 5. Qb3 {[%emt 0:00:04]} dxc4 {[%emt 0:00:08]} 6. Qxc4 {[%emt 0:00:07]} O-O {[%emt 0:00:12]} 7. e4 {[%emt 0:00:04]} Nc6 {[%emt 0:00:13]} 8. Be2 {[%emt 0:01:02]} Bg4 {[%emt 0:00:52]} 9. Be3 {[%emt 0:00:23]} Bxf3 {[%emt 0:01:08]} 10. Bxf3 {[%emt 0:00:35]} e5 {[%emt 0:00:40]} 11. d5 {[%emt 0:08:16]} Nd4 {[%emt 0:00:38]} 12. Bxd4 {[%emt 0:02:07]} exd4 {[%emt 0:00:10]} 13. Ne2 {[%emt 0:04:16]} Re8 {[%emt 0:06:51]} 14. O-O {[%emt 0:12:21]} Nxe4 {[%emt 0:02:42]} 15. Qd3 {[%emt 0:06:44]} Ng5 {[%emt 0:16:48]} 16. Rfd1 {[%emt 0:10:28]} Nxf3+ {[%emt 0:08:37]} 17. Qxf3 {[%emt 0:00:35]} c5 {[%emt 0:01:32]} 18. dxc6 {[%emt 0:01:39]} bxc6 {[%emt 0:02:44]} 19. Rac1 {[%emt 0:06:49]} Rc8 {[%emt 0:14:49]} 20. Rc4 {[%emt 0:09:16]} c5 {[%emt 0:14:18]} 21. g3 {[%emt 0:05:02]} Qa5 {[%emt 0:07:17]} 22. Nc1 {[%emt 0:05:01]} Bh6 {[%emt 0:04:14]} 23. Nd3 {[%emt 0:04:10]} Qxa2 {[%emt 0:00:54]} 24. Rxc5 {[%emt 0:02:17]} Rxc5 {[%emt 0:04:50]} 25. Nxc5 {[%emt 0:00:08]} Qxb2 {[%emt 0:01:19]} 26. Ne4 {[%emt 0:05:01]} Rd8 {[%emt 0:02:25]} 27. Qf6 {[%emt 0:00:41]} Qb6 {[%emt 0:00:57]} 28. Qe7 {[%emt 0:01:28]} Bg7 {[%emt 0:01:05]} 29. Rc1 {[%emt 0:00:41]} a5 {[%emt 0:05:50]} 30. Rc7 {[%emt 0:01:58]} Qb1+ {[%emt 0:00:59]} 31. Kg2 {[%emt 0:00:20]} Rf8 {[%emt 0:00:07]} 32. Nc5 {[%emt 0:02:51]} Qf5 {[%emt 0:01:01]} 33. Nd7 {[%emt 0:01:20]} Ra8 {[%emt 0:00:47]} 34. Nb6 {[%emt 0:01:50]} Rb8 {[%emt 0:01:00]} 35. Nd7 {[%emt 0:00:45]} Qd5+ {[%emt 0:00:48]} 36. Kh3 {[%emt 0:01:50]} Qf5+ {[%emt 0:01:00]} 37. Kg2 {[%emt 0:00:47]} Bf8 {[%emt 0:00:35]} 38. Nf6+ {[%emt 0:00:37]} Kg7 {[%emt 0:00:59]} 39. Qxf7+ {[%emt 0:01:00]} Kh6 {[%emt 0:00:01]} 40. Qxh7+ {[%emt 0:00:00]} Kg5 {[%emt 0:00:00]} 41. Qh4# {[%emt 0:04:04]} 1-0